bitfinex/quotes_SOLUSD_20251204
["timestamp","ask_amount","ask_price","bid_price","bid_amount"]
[1764853713093,9.66663388,142.47,142.43,0.72]
[1764853713293,2.647422,142.45,142.42,0.72]
[1764853713510,2.647422,142.43,142.42,0.72]
[1764853714116,2.647422,142.44,142.42,0.72]
[1764853714298,2.647422,142.45,142.42,0.72]
[1764853714705,2.647422,142.45,142.42,7.74141466]
[1764853715011,2.647422,142.44,142.42,0.72]
[1764853715210,2.647422,142.43,142.42,0.72]
[1764853715614,2.647422,142.44,142.42,0.72]
[1764853716194,2.647422,142.43,142.42,0.72]
[1764853716394,2.647422,142.43,142.4,14.92232571]
[1764853716596,2.647422,142.43,142.41,0.72]
[1764853717110,2.647422,142.42,142.4,0.1]
[1764853717310,2.647422,142.41,142.4,0.1]
[1764853717814,2.647422,142.41,142.4,0.82]
[1764853718723,2.647422,142.42,142.4,0.82]
[1764853719705,7.02106446,142.43,142.4,0.82]
[1764853719900,2.647422,142.42,142.4,0.1]
[1764853721025,2.647422,142.42,142.4,0.82]
[1764853722125,2.647422,142.43,142.4,0.82]
[1764853723535,7.02148574,142.42,142.4,0.82]
[1764853724414,9.66890774,142.42,142.4,0.1]
[1764853724734,7.02148574,142.42,142.4,0.1]
[1764853725229,15.82995194,142.45,142.4,0.77]
[1764853725534,2.647422,142.42,142.4,0.1]
[1764853725833,9.66912009,142.42,142.4,0.1]
[1764853726516,7.02169809,142.42,142.4,0.77]
[1764853726832,7.02119354,142.43,142.4,0.77]
[1764853728227,15.83039904,142.45,142.4,7.792339]
[1764853728436,18.47782104,142.45,142.4,7.792339]
[1764853728625,15.83039904,142.45,142.41,0.67]
[1764853728831,18.47782104,142.45,142.41,0.67]
[1764853729217,9.66830041,142.44,142.41,0.67]
[1764853730539,2.647422,142.46,142.41,10.33936193]
[1764853730841,2.647422,142.46,142.42,7.78]
[1764853731148,2.647422,142.43,142.4,0.1]
[1764853731352,2.647422,142.43,142.4,0.77]
[1764853732352,7.02148574,142.42,142.4,0.77]
[1764853732560,7.02000702,142.45,142.4,7.79238065]
[1764853732845,2.647422,142.42,142.4,0.77]
[1764853733012,2.647422,142.42,142.4,0.1]
[1764853733212,2.647422,142.42,142.4,0.77]
[1764853733430,8.80994492,142.43,142.4,0.77]
[1764853733431,0.71,142.44,142.4,0.77]
[1764853733635,2.647422,142.42,142.4,0.77]
[1764853734286,2.647422,142.43,142.4,0.77]
[1764853734441,4.14303568,142.43,142.4,7.7923433]
[1764853734841,11.16401521,142.44,142.41,0.67]
[1764853736544,4.14303568,142.43,142.41,0.67]
[1764853736747,17.54934545,142.46,142.41,0.67]
[1764853736925,4.14303568,142.44,142.41,0.67]
[1764853737748,4.14303568,142.43,142.41,0.67]
[1764853738626,11.16427945,142.43,142.41,0.67]
[1764853739236,11.16427945,142.43,142.4,0.1]
[1764853739442,11.16427945,142.43,142.4,0.77]
[1764853739639,7.02124377,142.43,142.4,0.1]
[1764853739850,4.14303568,142.41,142.4,0.1]
[1764853741544,11.87501447,142.41,142.4,0.1]
[1764853741781,28.46495939,142.41,142.4,0.1]
[1764853741922,28.46495939,142.41,142.35,56.51210837]
[1764853742126,4.14303568,142.38,142.35,56.51210837]
[1764853742456,4.14303568,142.36,142.35,56.51210837]
[1764853742835,7.02197879,142.41,142.35,71.9870469]
[1764853743151,4.14303568,142.4,142.36,0.67]
[1764853743522,4.14303568,142.41,142.36,7.69437781]
[1764853743719,8.80994492,142.42,142.38,4.14303568]
[1764853744227,8.80994492,142.42,142.38,4.81303568]
[1764853744426,7.02205815,142.41,142.38,4.81303568]
[1764853744649,7.02205815,142.41,142.39,0.67]
[1764853744858,7.02205815,142.41,142.38,4.14303568]
[1764853745043,24.088864,142.44,142.38,4.14303568]
[1764853745044,4.14303568,142.44,142.39,4.81303568]
[1764853745242,20.68348045,142.44,142.39,4.81303568]
[1764853745458,4.85303568,142.43,142.39,0.67]
[1764853745648,7.02148574,142.42,142.39,0.67]
[1764853746763,7.02148574,142.42,142.39,4.81303568]
[1764853746961,7.02148574,142.42,142.39,0.67]
[1764853747156,7.02148574,142.42,142.39,4.81303568]
[1764853747836,28.71651036,142.43,142.39,4.81303568]
[1764853748043,29.42651036,142.43,142.39,4.81303568]
[1764853748954,29.42651036,142.43,142.39,0.67]
[1764853749132,29.42651036,142.43,142.39,4.81303568]
[1764853749747,29.42651036,142.43,142.39,0.67]
[1764853750957,24.57347468,142.43,142.39,4.81303568]
[1764853751250,7.02099276,142.43,142.39,4.81303568]
[1764853751453,7.02070083,142.44,142.4,0.67]
[1764853751749,7.02070083,142.44,142.41,4.14303568]
[1764853751952,24.57064527,142.45,142.41,4.14303568]
[1764853752129,25.28064527,142.45,142.41,4.81303568]
[1764853752549,29.42368095,142.45,142.41,0.67]
[1764853752752,4.14303568,142.44,142.41,0.67]
[1764853752957,8.80994492,142.43,142.38,16.998864]
[1764853753161,12.9529806,142.43,142.38,21.14189968]
[1764853753350,13.6529806,142.43,142.39,0.69]
[1764853753951,7.02148574,142.42,142.39,0.69]
[1764853754140,24.5752001,142.42,142.39,0.69]
[1764853754749,28.71823578,142.42,142.39,0.69]
[1764853755348,28.71823578,142.42,142.39,4.83303568]
[1764853755349,7.02148574,142.42,142.39,4.83303568]
[1764853755548,7.02118348,142.43,142.4,4.14303568]
[1764853755861,7.02118348,142.43,142.4,4.83303568]
[1764853756062,7.02049985,142.44,142.41,12.61303568]
[1764853756447,7.02049985,142.44,142.42,0.69]
[1764853756952,7.0201898,142.45,142.42,4.83303568]
[1764853757258,7.01912424,142.47,142.44,4.14303568]
[1764853757471,7.01912424,142.47,142.45,7.78]
[1764853757756,7.01912424,142.47,142.45,12.61303568]
[1764853757959,24.56315934,142.49,142.46,0.69]
[1764853759448,4.14303568,142.47,142.44,7.78]
[1764853759654,4.14303568,142.46,142.42,8.47]
[1764853759860,4.14303568,142.47,142.42,8.47]
[1764853760051,7.01951424,142.46,142.43,0.69]
[1764853760654,7.01951424,142.46,142.42,7.78]
[1764853760655,4.14303568,142.44,142.42,7.78]
[1764853760963,4.14303568,142.44,142.4,0.69]
[1764853761463,4.84303568,142.44,142.4,0.69]
[1764853762054,7.02099276,142.43,142.4,0.69]
[1764853762351,4.14303568,142.41,142.38,0.69]
[1764853762665,4.14303568,142.4,142.36,0.69]
[1764853762859,4.14303568,142.39,142.36,0.69]
[1764853764309,7.02345835,142.38,142.36,0.69]
[1764853765364,7.02318608,142.39,142.36,0.69]
[1764853765867,21.69729065,142.42,142.36,11.85740495]
[1764853766164,7.02099276,142.43,142.39,20.45189968]
[1764853766354,7.02099276,142.43,142.4,8.47]
[1764853766557,7.02099276,142.43,142.41,0.69]
[1764853767359,7.02099276,142.43,142.4,7.78]
[1764853767670,11.16402844,142.43,142.41,0.69]
[1764853767871,7.02099276,142.43,142.41,0.69]
[1764853768044,11.16402844,142.43,142.41,0.69]
[1764853770359,11.16402844,142.43,142.4,8.47]
[1764853771065,4.14303568,142.41,142.37,62.99]
[1764853771376,4.14303568,142.38,142.36,7.78]
[1764853771752,4.14303568,142.4,142.37,0.69]
[1764853771956,4.14303568,142.4,142.37,8.47]
[1764853772662,11.16595612,142.4,142.37,8.47]
[1764853773257,29.42213589,142.4,142.35,57.20210837]
[1764853773579,4.14303568,142.38,142.36,8.47]
[1764853774151,4.14303568,142.39,142.36,8.47]
[1764853774351,7.02345835,142.38,142.36,8.47]
[1764853775046,7.02276896,142.4,142.37,0.69]
[1764853775366,11.16580464,142.4,142.37,0.69]
[1764853775554,7.02212783,142.41,142.38,16.308864]
[1764853775759,7.02212783,142.41,142.39,7.78]
[1764853775972,7.02154744,142.42,142.39,8.47]
[1764853776156,7.02154744,142.42,142.39,7.78]
[1764853776352,7.02000702,142.45,142.4,0.69]
[1764853776553,7.02000702,142.45,142.42,16.308864]
[1764853776751,7.02000702,142.45,142.42,24.088864]
[1764853776969,7.02000702,142.45,142.43,0.69]
[1764853777561,4.14303568,142.46,142.43,0.69]
[1764853777562,7.01961006,142.46,142.43,0.69]
[1764853777976,11.16224589,142.47,142.43,0.69]
[1764853778488,18.00423368,142.47,142.43,0.69]
[1764853778864,10.98502347,142.45,142.42,24.088864]
[1764853779088,10.98502347,142.46,142.43,0.69]
[1764853779962,10.98502347,142.45,142.42,7.78]
[1764853780158,10.98502347,142.44,142.42,7.78]
[1764853780362,10.98502347,142.44,142.41,0.69]
[1764853780575,7.02099276,142.43,142.41,0.69]
[1764853780882,7.02059415,142.44,142.41,0.69]
[1764853782184,7.02059415,142.44,142.39,17.028864]
[1764853782185,19.79496839,142.43,142.39,17.028864]
[1764853782363,19.79496839,142.43,142.4,8.5]
[1764853782559,7.02148574,142.42,142.4,8.5]
[1764853782784,18.70650921,142.42,142.38,0.67]
[1764853782985,20.49496839,142.41,142.36,11.65502347]
[1764853783284,20.49496839,142.41,142.38,7.78]
[1764853784780,7.02247191,142.4,142.38,7.78]
[1764853785300,7.02247191,142.4,142.36,18.76502347]
[1764853785491,7.72247191,142.4,142.36,18.76502347]
[1764853785660,7.02247191,142.4,142.36,18.76502347]
[1764853786060,7.02247191,142.4,142.37,10.98502347]
[1764853786270,7.02247191,142.4,142.36,14.80425804]
[1764853786473,7.72247191,142.4,142.36,25.78928151]
[1764853787384,7.02218781,142.41,142.37,11.65502347]
[1764853787681,7.72218781,142.41,142.37,11.65502347]
[1764853787885,0.7,142.4,142.37,0.67]
[1764853788083,7.02218781,142.41,142.37,11.65502347]
[1764853788391,7.72218781,142.41,142.37,7.69386596]
[1764853788587,7.72218781,142.41,142.37,18.67888943]
[1764853788890,7.02218781,142.41,142.38,0.67]
[1764853789078,18.00671526,142.42,142.38,0.67]
[1764853789277,18.70671526,142.42,142.38,0.67]
[1764853789788,7.02169179,142.42,142.39,10.98502347]
[1764853790286,7.02169179,142.42,142.39,0.67]
[1764853790789,7.02118621,142.43,142.39,7.69275851]
[1764853790983,25.78571781,142.44,142.39,18.67778198]
[1764853791166,14.80069434,142.44,142.4,0.67]
[1764853791666,18.00507584,142.45,142.4,11.65502347]
[1764853791867,7.02005237,142.45,142.41,11.65502347]
[1764853792376,35.55405468,142.46,142.42,0.67]
[1764853792577,36.25405468,142.46,142.42,0.67]
[1764853794468,18.00453771,142.46,142.42,0.67]
[1764853794766,7.01951424,142.46,142.42,11.65502347]
[1764853794972,7.01951424,142.46,142.43,0.67]
[1764853795297,26.8141357,142.47,142.43,0.67]
[1764853795672,7.78,142.49,142.44,10.98502347]
[1764853796072,16.52741963,142.51,142.45,18.67503049]
[1764853796285,35.2924431,142.51,142.46,10.98502347]
[1764853796479,31.40157597,142.51,142.46,7.76415634]
[1764853796979,0.7,142.5,142.46,0.67]
[1764853797601,0.7,142.5,142.46,7.76415634]
[1764853798380,7.71777051,142.5,142.46,14.78354408]
[1764853798672,7.71777051,142.5,142.46,7.68938774]
[1764853798673,14.81192685,142.5,142.46,7.68938774]
[1764853800608,2.64874131,142.47,142.43,7.78]
[1764853800898,8.80994492,142.48,142.43,16.308864]
[1764853801112,17.28994492,142.48,142.43,16.308864]
[1764853801289,0.7,142.47,142.43,16.978864]
[1764853801674,0.7,142.47,142.43,26.64848672]
[1764853802403,0.7,142.47,142.43,23.99974541]
[1764853802586,7.71923593,142.47,142.44,16.308864]
[1764853805593,7.78,142.49,142.45,3.31874131]
[1764853805594,7.71813995,142.49,142.45,3.31874131]
[1764853805998,11.45868623,142.52,142.46,0.67]
[1764853806188,7.0171739,142.51,142.47,2.64874131]
[1764853806498,7.0171739,142.51,142.48,0.67]
[1764853807073,7.71669399,142.52,142.48,0.67]
[1764853807294,7.01669399,142.52,142.48,10.33708545]
[1764853807692,7.01669399,142.52,142.49,0.67]
[1764853808491,10.3648848,142.53,142.49,0.67]
[1764853808692,7.71619953,142.53,142.49,3.31874131]
[1764853808905,7.71619953,142.53,142.5,0.67]
[1764853809277,7.71619953,142.53,142.49,2.64874131]
[1764853809576,7.71480781,142.56,142.51,2.64874131]
[1764853809778,7.71480781,142.56,142.52,3.31874131]
[1764853809998,7.71480781,142.56,142.51,7.78]
[1764853809999,0.7,142.55,142.51,10.42874131]
[1764853810180,0.7,142.55,142.52,0.67]
[1764853811472,0.7,142.55,142.52,7.68644225]
[1764853811695,0.7,142.55,142.52,10.33518356]
[1764853812380,0.7,142.55,142.52,7.68644225]
[1764853812580,7.01480781,142.56,142.52,10.33518356]
[1764853812898,7.73480781,142.56,142.52,3.31874131]
[1764853813396,15.82417303,142.57,142.53,0.69]
[1764853813578,7.21365092,142.58,142.54,2.64874131]
[1764853813898,7.93365092,142.58,142.54,0.69]
[1764853815395,7.93365092,142.58,142.51,16.308864]
[1764853815396,2.64874131,142.55,142.51,16.308864]
[1764853815901,3.36874131,142.55,142.51,16.998864]
[1764853816201,2.64874131,142.56,142.52,0.69]
[1764853816841,7.01508242,142.55,142.52,0.69]
[1764853818282,7.73508242,142.55,142.52,0.69]
[1764853818799,0.72,142.54,142.51,16.308864]
[1764853819000,10.38382373,142.55,142.51,0.69]
[1764853819595,2.64874131,142.54,142.51,0.69]
[1764853819788,2.64874131,142.53,142.49,0.69]
[1764853819993,3.36874131,142.53,142.49,7.70781618]
[1764853820613,0.72,142.53,142.49,7.70781618]
[1764853820784,2.64874131,142.54,142.5,7.70739379]
[1764853820984,3.36874131,142.54,142.5,7.70739379]
[1764853821184,14.79508242,142.55,142.5,9.6661351]
[1764853821508,7.01508242,142.55,142.51,0.69]
[1764853821681,9.66382373,142.55,142.51,0.69]
[1764853821882,7.73508242,142.55,142.51,3.33874131]
[1764853822201,7.73508242,142.55,142.5,7.01739379]
[1764853822202,0.72,142.54,142.5,9.6661351]
[1764853822401,2.64874131,142.53,142.49,7.01782413]
[1764853822595,2.64874131,142.53,142.49,7.70782413]
[1764853822794,10.38499979,142.53,142.49,7.70782413]
[1764853823102,10.38499979,142.53,142.49,7.01782413]
[1764853823296,2.64874131,142.54,142.5,0.69]
[1764853823813,0.72,142.54,142.5,3.33874131]
[1764853824378,9.66425645,142.55,142.5,2.64874131]
[1764853824584,7.73551514,142.55,142.51,0.69]
[1764853825282,7.01551514,142.55,142.52,2.64874131]
[1764853825679,7.01480356,142.56,142.53,0.69]
[1764853825899,7.73480356,142.56,142.53,0.69]
[1764853826097,0.72,142.56,142.53,0.69]
[1764853826414,0.72,142.56,142.52,2.64874131]
[1764853826583,7.73431228,142.57,142.53,0.69]
[1764853826791,14.99382467,142.58,142.54,7.01557457]
[1764853827093,15.71382467,142.58,142.54,7.01557457]
[1764853827485,7.98,142.58,142.55,0.69]
[1764853828015,0.2,142.58,142.57,16.308864]
[1764853828311,0.92,142.58,142.57,16.308864]
[1764853829612,0.2,142.58,142.57,16.308864]
[1764853830114,0.2,142.58,142.56,7.01446162]
[1764853830334,0.2,142.58,142.56,7.70446162]
[1764853831225,0.2,142.58,142.55,9.66364283]
[1764853831394,0.2,142.58,142.54,42.31780043]
[1764853831395,10.58238599,142.58,142.54,31.79426687]
[1764853831584,11.45868623,142.57,142.51,7.70673053]
[1764853831785,2.64874131,142.55,142.51,7.70673053]
[1764853832291,2.64874131,142.55,142.52,0.69]
[1764853832715,3.36874131,142.55,142.52,0.69]
[1764853833113,9.66372992,142.56,142.52,7.70649582]
[1764853833315,10.38298409,142.57,142.52,10.35523713]
[1764853833511,10.38298409,142.57,142.53,0.69]
[1764853834114,17.73401599,142.58,142.53,3.33874131]
[1764853834115,0.2,142.58,142.53,3.33874131]
[1764853834292,0.2,142.58,142.54,2.64874131]
[1764853834615,0.2,142.58,142.54,11.11874131]
[1764853834816,0.2,142.58,142.55,7.70471541]
[1764853835202,0.2,142.58,142.56,0.69]
[1764853836843,0.2,142.58,142.55,9.66345672]
[1764853837135,0.72,142.57,142.54,7.78]
[1764853837319,3.36874131,142.57,142.54,0.69]
[1764853837630,3.36874131,142.57,142.53,7.78]
[1764853837842,3.36874131,142.57,142.53,7.70606155]
[1764853838009,0.72,142.57,142.53,7.70606155]
[1764853838802,10.38309339,142.57,142.53,7.70606155]
[1764853840028,7.21397856,142.58,142.54,0.69]
[1764853840200,3.36874131,142.57,142.52,10.42874131]
[1764853840404,2.64874131,142.56,142.51,86.3157582]
[1764853840630,11.45868623,142.55,142.51,0.69]
[1764853840821,9.52994492,142.55,142.51,0.69]
[1764853841028,0.72,142.54,142.51,0.69]
[1764853841622,7.73588593,142.54,142.51,0.69]
[1764853842132,7.73588593,142.54,142.5,23.32617759]
[1764853842437,2.64874131,142.52,142.49,7.01797381]
[1764853842736,2.64874131,142.52,142.49,7.72797381]
[1764853843031,2.64874131,142.52,142.49,0.71]
[1764853843247,3.32874131,142.52,142.49,17.018864]
[1764853843543,0.68,142.52,142.49,0.71]
[1764853843747,10.34532076,142.52,142.49,17.018864]
[1764853846540,9.66532076,142.52,142.49,24.03687552]
[1764853848542,10.34532076,142.52,142.49,24.03687552]
[1764853849540,9.66532076,142.52,142.49,24.03687552]
[1764853850131,2.64874131,142.54,142.5,0.67]
[1764853850332,3.32874131,142.54,142.5,0.67]
[1764853850537,3.32874131,142.55,142.5,0.67]
[1764853850752,3.32874131,142.55,142.5,8.45]
[1764853850956,3.32874131,142.55,142.51,0.67]
[1764853851759,10.34402121,142.55,142.51,7.68701081]
[1764853852861,2.64874131,142.54,142.51,7.68701081]
[1764853853067,2.64874131,142.55,142.52,0.67]
[1764853854237,9.66384106,142.55,142.52,0.67]
[1764853855662,3.32874131,142.55,142.52,7.68641248]
[1764853856259,2.64874131,142.55,142.52,7.68641248]
[1764853856444,4.13602259,142.55,142.52,7.01641248]
[1764853856647,4.13602259,142.55,142.53,0.67]
[1764853857642,4.13602259,142.56,142.53,7.68583336]
[1764853858444,4.13602259,142.57,142.54,0.67]
[1764853859671,4.13602259,142.57,142.54,7.68540677]
[1764853859873,4.81602259,142.57,142.54,7.68540677]
[1764853860045,4.13602259,142.57,142.54,7.01540677]
[1764853860372,11.34983532,142.58,142.55,0.67]
[1764853860885,4.13602259,142.56,142.53,70.08]
[1764853861166,4.13602259,142.56,142.53,70.75]
[1764853861375,4.13602259,142.56,142.53,77.09580752]
[1764853861558,4.13602259,142.56,142.54,0.67]
[1764853862078,4.13602259,142.56,142.54,7.68556091]
[1764853862262,4.81602259,142.57,142.54,7.68556091]
[1764853862465,11.83018369,142.57,142.54,0.67]
[1764853862851,4.13602259,142.56,142.54,0.67]
[1764853863052,4.81602259,142.56,142.53,62.3]
[1764853863352,4.81602259,142.56,142.53,62.97]
[1764853864083,4.13602259,142.56,142.53,69.98598906]
[1764853865173,4.13602259,142.56,142.53,7.68598906]
[1764853865375,4.13602259,142.56,142.54,0.67]
[1764853865756,0.2,142.58,142.54,0.67]
[1764853865971,0.2,142.58,142.54,4.80602259]
[1764853866170,11.34973971,142.58,142.54,7.68515527]
[1764853866382,0.68,142.57,142.54,7.01515527]
[1764853866572,0.68,142.57,142.54,14.79538458]
[1764853866770,4.13602259,142.57,142.55,0.67]
[1764853867179,11.34973971,142.58,142.55,0.67]
[1764853867480,12.02973971,142.58,142.55,0.67]
[1764853868078,4.33602259,142.58,142.55,7.68491609]
[1764853868485,4.33602259,142.58,142.56,0.67]
[1764853869289,0.2,142.58,142.56,0.67]
[1764853869782,0.2,142.58,142.57,7.01409833]
[1764853869999,0.2,142.58,142.57,14.79409833]
[1764853870170,0.2,142.58,142.57,15.46409833]
[1764853870496,0.2,142.58,142.57,19.60012092]
[1764853870794,0.2,142.58,142.57,15.46409833]
[1764853871788,0.2,142.58,142.57,19.60012092]
[1764853871968,0.2,142.58,142.57,15.46409833]
[1764853872178,0.2,142.58,142.57,19.60012092]
[1764853872984,0.2,142.58,142.57,11.82012092]
[1764853873296,0.2,142.58,142.57,19.60012092]
[1764853876397,0.2,142.58,142.57,15.46409833]
[1764853876592,0.2,142.58,142.57,19.60012092]
[1764853876994,0.2,142.58,142.57,81.90012092]
[1764853877499,0.2,142.58,142.57,81.23012092]
[1764853877675,0.2,142.58,142.57,77.09409833]
[1764853878384,0.2,142.58,142.57,81.94012092]
[1764853879985,0.2,142.58,142.57,81.23012092]
[1764853880189,0.2,142.58,142.57,81.94012092]
[1764853881884,0.2,142.58,142.57,77.09409833]
[1764853882115,0.2,142.58,142.57,81.23012092]
[1764853882285,0.2,142.58,142.57,77.80409833]
[1764853882600,0.2,142.58,142.57,16.308864]
[1764853882801,0.88,142.58,142.54,8.49]
[1764853882994,0.2,142.58,142.55,4.13602259]
[1764853883185,0.2,142.58,142.56,7.01440932]
[1764853883382,0.2,142.58,142.57,7.01409833]
[1764853883778,0.2,142.58,142.57,11.86012092]
[1764853884013,0.2,142.58,142.57,35.94898492]
[1764853887810,0.2,142.58,142.57,31.10296233]
[1764853887983,0.2,142.58,142.57,31.81296233]
[1764853888910,0.2,142.58,142.57,31.10296233]
[1764853890185,0.2,142.58,142.57,23.32296233]
[1764853890501,0.2,142.58,142.57,31.10296233]
[1764853891306,0.2,142.58,142.57,24.03296233]
[1764853891497,0.2,142.58,142.57,31.81296233]
[1764853893200,0.88,142.58,142.57,16.308864]
[1764853893512,0.88,142.58,142.57,23.32296233]
[1764853893706,0.2,142.58,142.57,23.32296233]
[1764853893911,0.2,142.58,142.57,24.03296233]
[1764853894097,0.2,142.58,142.57,23.32296233]
[1764853894816,0.2,142.58,142.57,24.03296233]
[1764853895889,0.2,142.58,142.57,23.32296233]
[1764853898618,0.88,142.58,142.57,16.308864]
[1764853898992,0.2,142.58,142.57,23.32296233]
[1764853901596,0.2,142.58,142.57,31.10296233]
[1764853903188,0.2,142.58,142.57,31.80296233]
[1764853903388,0.2,142.58,142.57,23.32296233]
[1764853903591,0.2,142.58,142.57,31.10296233]
[1764853905016,0.2,142.58,142.57,31.76296233]
[1764853905220,0.2,142.58,142.57,31.10296233]
[1764853908005,0.2,142.58,142.57,31.76296233]
[1764853908928,0.2,142.58,142.57,35.89898492]
[1764853910734,0.2,142.58,142.57,98.19898492]
[1764853912531,0.2,142.58,142.57,90.41898492]
[1764853912730,0.2,142.58,142.57,98.19898492]
[1764853914472,0.2,142.58,142.57,90.41898492]
[1764853914644,0.2,142.58,142.57,98.19898492]
[1764853915145,0.2,142.58,142.57,90.41898492]
[1764853915307,0.2,142.58,142.57,98.17898492]
[1764853918456,0.2,142.58,142.57,96.6867181]
[1764853918957,0.2,142.59,142.57,96.6867181]
[1764853919160,0.2,142.59,142.58,3.30375577]
[1764853919371,0.2,142.59,142.58,65.60375577]
[1764853919663,1e-08,142.59,142.58,79.8629974]
[1764853919946,1e-08,142.59,142.58,77.21924163]
[1764853920528,1e-08,142.59,142.58,84.23284802]
[1764853922624,1e-08,142.59,142.58,169.8078711]
[1764853922949,1e-08,142.59,142.58,159.23284802]
[1764853923149,1e-08,142.59,142.58,84.23284802]
[1764853923822,1e-08,142.59,142.58,91.99284802]
[1764853924148,1e-08,142.59,142.58,81.42730708]
[1764853924324,1e-08,142.59,142.58,89.18730708]
[1764853925351,1e-08,142.59,142.58,69.97360639]
[1764853925522,1e-08,142.59,142.58,80.37736216]
[1764853926343,1e-08,142.59,142.58,77.73360639]
[1764853926522,1e-08,142.59,142.58,80.37736216]
[1764853926738,1e-08,142.59,142.58,77.73360639]
[1764853927044,1e-08,142.59,142.58,80.37736216]
[1764853931342,0.2,142.62,142.61,16.308864]
[1764853931545,0.89,142.62,142.61,24.068864]
[1764853931842,0.89,142.62,142.61,26.71261977]
[1764853932546,0.89,142.62,142.61,33.72475075]
[1764853932853,0.89,142.62,142.61,31.08099498]
[1764853935666,0.89,142.62,142.61,24.068864]
[1764853936845,0.89,142.62,142.61,16.308864]
[1764853937145,28.07449339,142.62,142.57,7.01379159]
[1764853937353,2.64375577,142.6,142.56,7.76]
[1764853937751,0.68,142.59,142.58,16.308864]
[1764853938456,0.68,142.61,142.59,7.0127086]
[1764853938664,0.68,142.6,142.59,17.41646437]
[1764853938866,0.68,142.6,142.59,14.7727086]
[1764853942470,0.68,142.6,142.59,7.76]
[1764853942970,0.68,142.6,142.58,7.01350426]
[1764853943270,0.68,142.6,142.58,14.77350426]
[1764853948377,0.2,142.62,142.58,34.95127602]
[1764853948553,0.68,142.61,142.6,7.01262272]
[1764853948758,0.68,142.61,142.6,14.77262272]
[1764853950862,0.2,142.62,142.6,14.77262272]
[1764853951169,0.88,142.62,142.6,14.77262272]
[1764853951565,0.68,142.61,142.6,14.77262272]
[1764853954784,0.2,142.62,142.6,14.77262272]
[1764853955082,0.88,142.62,142.6,14.77262272]
[1764853955272,0.2,142.62,142.6,15.45262272]
[1764853955467,0.88,142.62,142.6,14.77262272]
[1764853957088,0.68,142.61,142.6,16.308864]
[1764853957884,0.2,142.62,142.6,16.308864]
[1764853958083,0.68,142.61,142.6,16.308864]
[1764853958286,3.32375577,142.61,142.6,16.308864]
[1764853959286,0.68,142.61,142.6,16.308864]
[1764853961490,0.2,142.62,142.6,23.32148672]
[1764853961787,0.88,142.62,142.6,23.32148672]
[1764853962163,0.68,142.61,142.6,23.32148672]
[1764853962363,3.32375577,142.61,142.57,7.01129709]
[1764853962565,3.32375577,142.61,142.57,7.76]
[1764853962873,0.69,142.6,142.57,14.77378869]
[1764853964587,0.69,142.6,142.57,15.47378869]
[1764853966285,0.2,142.62,142.6,16.308864]
[1764853966591,0.2,142.62,142.61,9.65588675]
[1764853966787,0.2,142.62,142.61,7.01213098]
[1764853967088,0.2,142.62,142.61,7.76]
[1764853967089,0.87,142.62,142.61,7.76]
[1764853967893,7.88164815,142.62,142.58,10.35687496]
[1764853968092,0.67,142.61,142.59,7.76]
[1764853969067,0.67,142.61,142.59,14.77302253]
[1764853971401,0.67,142.61,142.59,7.76]
[1764853972593,0.67,142.61,142.59,14.77309534]
[1764853975814,0.67,142.61,142.59,7.01309534]
[1764853976799,0.2,142.62,142.6,3.34375577]
[1764853977111,0.2,142.62,142.6,11.10375577]
[1764853977285,0.2,142.62,142.61,10.35588675]
[1764853977608,0.87,142.62,142.61,7.01213098]
[1764853977796,0.87,142.62,142.6,79.71617689]
[1764853978300,0.67,142.61,142.6,69.31242112]
[1764853978799,0.2,142.62,142.6,69.31242112]
[1764853979014,0.87,142.62,142.6,69.31242112]
[1764853980700,0.67,142.61,142.6,62.3]
[1764853980890,0.67,142.61,142.59,14.77301771]